fUSD/lending_fUSD_20240127
["ID","MTS","AMOUNT","RATE_DAILY","PERIOD"]
[312842982,1706339113378,155.0,0.0002162,2]
[312842983,1706339115402,175.69787021,0.0002162,2]
[312842984,1706339117029,247.92045702,0.0002162,2]
[312842985,1706339117085,155.0,0.00021328,2]
[312842986,1706339118885,525.47778428,0.0002162,2]
[312842987,1706339118983,10572.76791723,0.0002162,2]
[312842988,1706339119235,489.06171799,0.0002162,2]
[312842989,1706339120358,260.66024595,0.0002162,2]
[312842990,1706339121161,296.81247148,0.0002162,2]
[312842991,1706339121200,155.0,0.0002162,2]
[312842992,1706339121845,420.7037701,0.0002162,2]
[312842993,1706339121878,1000.0,0.0002162,2]
[312842994,1706339131839,200.0,0.00021357,2]
[312842995,1706339135848,338.70352385,0.00020759,2]
[312842996,1706339147282,180.05,0.00021357,2]
[312842997,1706339162490,1904.46,0.00021357,2]
[312842998,1706339162770,150.0,0.0002162,2]
[312842999,1706339166944,760.4,0.0002134,2]
[312843000,1706339175784,2054.2,0.0002134,2]
[312843001,1706339179174,772.3,0.00021347,2]
[312843002,1706339179978,200.0,0.00021347,2]
[312843003,1706339191533,174.97,0.00016712,2]
[312843004,1706339197750,489.06171799,0.0002162,2]
[312843005,1706339201618,163.77,0.00017082,2]
[312843006,1706339201878,163.77,0.00019928,2]
[312843007,1706339212633,158.09566657,0.00021521,2]
[312843008,1706339221207,19034.57802151,0.0002162,2]
[312843009,1706339227514,10572.76791723,0.0002162,2]
[312843010,1706339237744,760.46,0.00021311,2]
[312843011,1706339239816,1521.34,0.00021311,2]
[312843012,1706339258413,690.75426141,0.0002162,2]
[312843013,1706339260923,690.75426141,0.0002162,2]
[312843014,1706339265917,690.75426141,0.0002162,2]
[312843015,1706339275420,690.75426141,0.0002162,2]
[312843016,1706339281083,7851.5,0.00021309,2]
[312843017,1706339284921,690.75426141,0.0002162,2]
[312843018,1706339310338,687.11,0.00021592,2]
[312843019,1706339311841,-420.32516691,0.00021621,2]
[312843020,1706339311865,-203.67182974,0.00021621,2]
[312843021,1706339311885,-4634.54387078,0.00021621,2]
[312843022,1706339311907,-524.98204654,0.00021621,2]
[312843023,1706339311929,-630.041593,0.00021621,2]
[312843024,1706339311953,-477.16907129,0.00021622,2]
[312843025,1706339312126,-389.18896498,0.00021622,2]
[312843026,1706339312149,-376.04252086,0.00021622,2]
[312843027,1706339312169,-291.7796317,0.00021622,2]
[312843028,1706339312190,-400.0,0.00021622,2]
[312843029,1706339312212,-2605.70420416,0.00021622,2]
[312843030,1706339312234,-490.50225802,0.00021623,2]
[312843031,1706339312256,-8389.56259983,0.00021623,2]
[312843032,1706339312276,-265.71860314,0.00021624,2]
[312843033,1706339312295,-379.47065826,0.00021624,2]
[312843034,1706339312315,-337.7444889,0.00021624,2]
[312843035,1706339312334,-155.35265392,0.00021624,2]
[312843036,1706339312355,-246.8169305,0.00021624,2]
[312843037,1706339312375,-155.32164383,0.00021624,2]
[312843038,1706339312396,-155.38581383,0.00021624,2]
[312843039,1706339312416,-304.997437,0.00021624,2]
[312843040,1706339312436,-155.42221951,0.00021624,2]
[312843041,1706339312457,-339.11054533,0.00021624,2]
[312843042,1706339312477,-163.24557979,0.00021624,2]
[312843043,1706339312497,-280.8128822,0.00021624,2]
[312843044,1706339312518,-234.41248839,0.00021624,2]
[312843045,1706339312538,-155.87864044,0.00021624,2]
[312843046,1706339312559,-1000.0,0.00021624,2]
[312843047,1706339312579,-261.35413397,0.00021624,2]
[312843048,1706339312603,-157.75601599,0.00021624,2]
[312843049,1706339312623,-24374.22356804,0.00021625,2]
[312843050,1706339312644,-1043.46193915,0.00021625,2]
[312843051,1706339349896,155.0,0.0002162,2]
[312843052,1706339366920,216.30129245,0.0002,2]
[312843053,1706339380224,250.0,0.00021518,2]
[312843054,1706339380665,2000.0,0.00021593,2]
[312843055,1706339387818,23900.0,0.00021586,2]
[312843056,1706339390785,155.0,0.0002,2]
[312843057,1706339394969,-524.514754,0.00021623,2]
[312843058,1706339394991,-205.16127389,0.00021624,2]
[312843059,1706339395014,-630.041593,0.00021624,2]
[312843060,1706339395036,-1640.28237911,0.00021624,2]
[312843061,1706339402476,150.0,0.0002162,2]
[312843062,1706339402772,150.0,0.0002162,2]
[312843063,1706339402865,150.0,0.0002162,2]
[312843064,1706339403029,150.0,0.0002162,2]
[312843065,1706339403220,150.0,0.0002162,2]
[312843066,1706339403478,293.36135867,0.0002162,2]
[312843067,1706339410784,155.0,0.0002,2]
[312843068,1706339421651,19952.2192,0.00021527,2]
[312843069,1706339428793,155.0,0.0002,2]
[312843075,1706339431822,-628.80449485,0.00021623,2]
[312843076,1706339431834,-15476.41967369,0.00021623,2]
[312843077,1706339431875,-402.00805127,0.00021623,2]
[312843078,1706339431931,-1460.75587726,0.00021623,2]
[312843079,1706339431987,-2547.93659347,0.00021623,2]
[312843080,1706339432001,-2172.92551066,0.00021623,2]
[312843081,1706339432013,-333.00815705,0.00021623,2]
[312843082,1706339432040,-6699.0657323,0.00021623,2]
[312843083,1706339432052,-1123.85,0.00021623,2]
[312843084,1706339432066,-951.03062251,0.00021623,2]
[312843085,1706339432096,-677.95451397,0.00021623,2]
[312843095,1706339438455,-1109.2339416,0.00021623,2]
[312843096,1706339438469,-275.78441137,0.00021623,2]
[312843097,1706339438665,-196.20296369,0.00021623,2]
[312843098,1706339438676,-203.22033394,0.00021624,2]
[312843099,1706339438686,-459.32294193,0.00021625,2]
[312843100,1706339438718,-253.89399304,0.00021625,2]
[312843101,1706339438731,-1076.46431185,0.00021625,2]
[312843102,1706339438772,-6413.3577052,0.00021625,2]
[312843103,1706339438783,-150.0,0.00021625,2]
[312843104,1706339438793,-300.0,0.00021625,2]
[312843105,1706339438803,-1000.0,0.00021649,2]
[312843106,1706339438815,-4650.61,0.00021653,2]
[312843108,1706339438826,-266.93054735,0.00021656,2]
[312843110,1706339438837,-231.8498432,0.00021656,2]
[312843112,1706339438847,-155.20638322,0.00021657,2]
[312843114,1706339438858,-178.08479796,0.00021657,2]
[312843116,1706339438869,-310.6035145,0.00021657,2]
[312843118,1706339438879,-355.01316218,0.00021657,2]
[312843121,1706339438891,-155.43737958,0.00021665,2]
[312843123,1706339438901,-155.29558977,0.00021665,2]
[312843125,1706339438912,-250.66764355,0.00021665,2]
[312843127,1706339438921,-283.11722637,0.00021665,2]
[312843129,1706339438930,-499.99,0.00021671,2]
[312843131,1706339438939,-1241.01,0.00021681,2]
[312843133,1706339438950,-936.82,0.00021681,2]
[312843135,1706339438961,-741.15600948,0.00021689,2]
[312843137,1706339438971,-2078.69,0.00021689,2]
[312843139,1706339438981,-194.94,0.00021695,2]
[312843142,1706339438993,-1000.0,0.00021732,2]
[312843144,1706339439004,-172.43,0.00021737,2]
[312843146,1706339439015,-601.6353,0.00021806,2]
[312843148,1706339439025,-206.2861,0.00021806,2]
[312843150,1706339439035,-400.68545896,0.00021846,2]
[312843152,1706339439045,-289.61823134,0.00021889,2]
[312843154,1706339439056,-289.61823134,0.00021889,2]
[312843156,1706339439067,-289.61823134,0.00021889,2]
[312843159,1706339439080,-289.61823134,0.00021889,2]
[312843161,1706339439089,-289.61823134,0.00021889,2]
[312843163,1706339439099,-289.61823134,0.00021889,2]
[312843165,1706339439109,-289.61823134,0.00021889,2]
[312843167,1706339439118,-289.61823134,0.00021889,2]
[312843169,1706339439129,-289.61823134,0.00021889,2]
[312843171,1706339439139,-289.61823134,0.00021889,2]
[312843173,1706339439148,-289.61823134,0.00021889,2]
[312843175,1706339439160,-289.61823134,0.00021889,2]
[312843177,1706339439170,-289.61823134,0.00021889,2]
[312843179,1706339439179,-289.61823134,0.00021889,2]
[312843181,1706339439190,-289.61823134,0.00021889,2]
[312843183,1706339439201,-289.61823134,0.00021889,2]
[312843185,1706339439211,-289.61823134,0.00021889,2]
[312843187,1706339439221,-289.61823134,0.00021889,2]
[312843189,1706339439231,-289.61823134,0.00021889,2]
[312843192,1706339439242,-289.61823134,0.00021889,2]
[312843194,1706339439252,-289.61823134,0.00021889,2]
[312843196,1706339439262,-289.61823134,0.00021889,2]
[312843198,1706339439272,-289.61823134,0.00021889,2]
[312843200,1706339439281,-289.61823134,0.00021889,2]
[312843202,1706339439292,-289.61823134,0.00021889,2]
[312843204,1706339439302,-289.61823134,0.00021889,2]
[312843206,1706339439312,-289.61823134,0.00021889,2]
[312843208,1706339439323,-289.61823134,0.00021889,2]
[312843210,1706339439333,-289.61823134,0.00021889,2]
[312843213,1706339439343,-289.61823134,0.00021889,2]
[312843215,1706339439353,-289.61823134,0.00021889,2]
[312843217,1706339439363,-289.61823134,0.00021889,2]
[312843219,1706339439373,-289.61823134,0.00021889,2]
[312843221,1706339439383,-289.61823134,0.00021889,2]
[312843223,1706339439394,-289.61823134,0.00021889,2]
[312843225,1706339439404,-15729.1268,0.00021906,2]
[312843227,1706339439414,-251.5928,0.00021906,2]
[312843229,1706339439424,-4605.43,0.00021918,2]
[312843231,1706339439433,-172.43,0.00021961,2]
[312843234,1706339439443,-4780.9,0.00022081,2]
[312843236,1706339439454,-172.43,0.00022185,2]
[312843238,1706339439463,-172.43,0.00022409,2]
[312843239,1706339439473,-172.43,0.00022634,2]
[312843240,1706339439484,-300.0,0.00022696,2]
[312843241,1706339439494,-505.40468864,0.00022766,2]
[312843242,1706339439505,-163.77,0.00022775,2]
[312843243,1706339439515,-1386.8362,0.00022798,2]
[312843244,1706339439526,-304.56823561,0.00022879,2]
[312843245,1706339439536,-933.2407,0.00022898,2]
[312843246,1706339439546,-2054.2,0.00022984,2]
[312843248,1706339439556,-176.15881753,0.00022994,2]
[312843251,1706339439566,-155.25663061,0.00022994,2]
[312843253,1706339439577,-345.60573259,0.00022994,2]
[312843255,1706339439588,-191.11582529,0.00022994,2]
[312843257,1706339439597,-414.05076458,0.00022994,2]
[312843259,1706339439608,-506.52431985,0.00022994,2]
[312843261,1706339439619,-701.01986545,0.00022994,2]
[312843263,1706339439629,-155.40023858,0.00022995,2]
[312843281,1706339439797,-198.10952639,0.00022996,2]
[312843282,1706339439812,-155.0,0.00022996,2]
[312843283,1706339439821,-155.42759983,0.00022996,2]
[312843284,1706339439831,-155.24946774,0.00022996,2]
[312843285,1706339439840,-155.79842865,0.00022996,2]
[312843286,1706339439849,-155.0,0.00022996,2]
[312843287,1706339439858,-524.52603564,0.00022996,2]
[312843288,1706339439869,-386.69473877,0.00022996,2]
[312843289,1706339439878,-155.63258898,0.00022996,2]
[312843290,1706339439887,-285.79694982,0.00022996,2]
[312843291,1706339439896,-155.28870957,0.00022996,2]
[312843292,1706339439906,-197.75109744,0.00022996,2]
[312843293,1706339439915,-362.21973642,0.00022996,2]
[312843294,1706339439926,-199.52500903,0.00022996,2]
[312843295,1706339439935,-155.21286653,0.00022996,2]
[312843296,1706339439945,-155.15859848,0.00022996,2]
[312843297,1706339439954,-4962.49139622,0.00022999,2]
[312843298,1706339439967,-462.2961555,0.00022999,2]
[312843299,1706339439979,-390.83555484,0.00022999,2]
[312843301,1706339440569,-5742.75349241,0.00022999,2]
[312843302,1706339440580,-68698.21116457,0.00023,2]
[312843303,1706339441197,-536.594,0.00023,2]
[312843346,1706339443016,-8800.70855021,0.00023,2]
[312843348,1706339443028,-1453.26703276,0.00023,2]
[312843350,1706339443037,-5000.0,0.00023,2]
[312843351,1706339443047,-180.48,0.00023085,2]
[312843352,1706339443056,-210.0,0.00023788,2]
[312843353,1706339443065,-156.06,0.00023871,2]
[312843354,1706339443075,-405.76,0.0002388,2]
[312843355,1706339443088,-363.74,0.00024384,2]
[312843356,1706339443097,-2692.17,0.00024384,2]
[312843357,1706339443106,-1000.0,0.00024448,2]
[312843358,1706339443115,-74.3972788,0.00024628,2]
[312843359,1706339443128,-1979.8027212,0.00024628,2]
[312843360,1706339443137,-165.27,0.00024658,2]
[312843361,1706339443147,-250.0,0.00024658,2]
[312843362,1706339443156,-151.08297639,0.000249,2]
[312843363,1706339443167,-998.04809554,0.00024947,2]
[312843364,1706339443180,-1695.7993108,0.00024947,2]
[312843365,1706339443189,-165.56,0.00024985,2]
[312843366,1706339443198,-404.18664723,0.00025,2]
[312843367,1706339443211,-1267.53629767,0.00025,2]
[312843368,1706339443222,-2331.71328566,0.00025,2]
[312843369,1706339443231,-661.69157545,0.00025,2]
[312843371,1706339445953,-322.8916,0.00025,2]
[312843372,1706339445965,-2025.92035975,0.00025,2]
[312843373,1706339445974,-269.93250284,0.00025,2]
[312843374,1706339445984,-407.91918282,0.00025,2]
[312843375,1706339445995,-607.16172605,0.00025,2]
[312843376,1706339446007,-3.41552407,0.00025,2]
[312843377,1706339446016,-274.90967836,0.00025,2]
[312843378,1706339446026,-614.91362653,0.00025,2]
[312843379,1706339446037,-163.77,0.00025622,2]
[312843380,1706339446046,-171.43,0.000259,2]
[312843381,1706339446055,-405.76,0.00026144,2]
[312843382,1706339446064,-984.59932673,0.00026272,2]
[312843383,1706339446077,-445.42495032,0.00026272,2]
[312843384,1706339446091,-624.17572295,0.00026272,2]
[312843385,1706339446100,-156.06,0.00026403,2]
[312843386,1706339446109,-1000.0,0.00026575,2]
[312843387,1706339446118,-167.66,0.00026651,2]
[312843388,1706339446128,-200.0,0.00026865,2]
[312843389,1706339446138,-158.09566655,0.00026954,2]
[312843390,1706339446147,-181.54518646,0.00026973,2]
[312843391,1706339446157,-844.8834209,0.00027165,2]
[312843392,1706339446168,-155.1165791,0.00027165,2]
[312843393,1706339446177,-165.27,0.00027397,2]
[312843394,1706339446186,-2601.68,0.00027671,2]
[312843395,1706339446196,-150.0,0.00027712,2]
[312843396,1706339446205,-523.05,0.0002772,2]
[312843397,1706339446215,-1000.0,0.000278,2]
[312843398,1706339446224,-888.50583533,0.000278,3]
[312843399,1706339446233,-9680.2486,0.000279,2]
[312843400,1706339446242,-10013.62100847,0.000279,2]
[312843401,1706339446255,-15039.63820285,0.000279,2]
[312843402,1706339447278,-1505.34238632,0.000279,2]
[312843403,1706339447290,-827.63640438,0.000279,2]
[312843404,1706339447302,-4199.43659798,0.000279,2]
[312843405,1706339447310,-2054.2,0.00027915,2]
[312843406,1706339447320,-500.0,0.00027997,2]
[312843407,1706339447329,-500.0,0.00027997,2]
[312843408,1706339447338,-4642.4619599,0.00027997,2]
[312843409,1706339447347,-460.57752375,0.00027997,2]
[312843410,1706339447358,-1048.28635536,0.00027998,2]
[312843411,1706339447367,-418622.23724163,0.00028,2]
[312843414,1706339449464,-3630.89559164,0.00028,2]
[312843415,1706339449479,-8027.10210652,0.00028,2]
[312843416,1706339449630,155.0,0.0002,2]
[312843417,1706339474816,155.0,0.0002,2]
[312843418,1706339494909,155.0,0.0002,2]
[312843419,1706339512115,206.2861,0.00021527,2]
[312843420,1706339514815,220.01723338,0.0002,2]
[312843421,1706339518729,737.3024,0.00021527,2]
[312843422,1706339628915,218.36,0.00020658,2]
[312843423,1706339634703,371.8763272,0.00020657,2]
[312843424,1706339797413,177.61,0.00016712,2]
[312843425,1706340199370,280.84592878,0.000302,120]
[312843426,1706340224874,176.3,0.00016712,2]
[312843427,1706340515724,-155.0,0.00022421,2]
[312843428,1706340515748,-155.0,0.00022422,2]
[312843429,1706340515773,-155.0,0.00022422,2]
[312843430,1706340515797,-2624.85951706,0.00022422,2]
[312843431,1706340515822,-310.72171271,0.00022422,2]
[312843432,1706340515846,-1815.13226475,0.00022423,2]
[312843433,1706340515871,-3184.28650548,0.00022423,2]
[312843434,1706340515911,667.87,0.00021774,2]
[312843435,1706340534250,-150.0,0.0002242,2]
[312843436,1706340545608,378.62443341,0.00016712,2]
[312843437,1706340554103,-245.37072626,0.00022417,2]
[312843438,1706340554123,-265.96269962,0.00022417,2]
[312843439,1706340554143,-250.76825842,0.00022418,2]
[312843440,1706340554164,-155.0,0.00022418,2]
[312843441,1706340554182,-385.02192497,0.00022418,2]
[312843442,1706340554203,-235.56484253,0.00022418,2]
[312843443,1706340554223,-727.74068817,0.00022418,2]
[312843454,1706340631990,-329.66712704,0.00022411,2]
[312843462,1706340632048,-456.81059646,0.00022411,2]
[312843463,1706340632060,-2637.53466704,0.00022411,2]
[312843464,1706340632108,-273.105,0.00022411,2]
[312843465,1706340632119,-557.31980239,0.00022411,2]
[312843466,1706340632129,-1043.80593188,0.00022411,2]
[312843467,1706340632138,-608.46540936,0.00022412,2]
[312843468,1706340633953,-1247.22566021,0.00022412,2]
[312843469,1706340633964,-150.0,0.00022413,2]
[312843470,1706340633974,-155.0,0.00022413,2]
[312843471,1706340633985,-218.358611,0.00022413,2]
[312843472,1706340633995,-3049.10614402,0.00022413,2]
[312843473,1706340634004,-1712.39042015,0.00022414,2]
[312843474,1706340634015,-400.0,0.00022414,2]
[312843475,1706340634026,-699.19928448,0.00022414,2]
[312843476,1706340634036,-401.29405049,0.00022414,2]
[312843477,1706340634047,-502.3142963,0.00022415,2]
[312843478,1706340634058,-1071.11454393,0.00022415,2]
[312843480,1706340634070,-350.0,0.00022415,2]
[312843482,1706340634083,-1982.0576214,0.00022415,2]
[312843483,1706340634095,-850.0,0.00022415,2]
[312843486,1706340639406,-491.64613668,0.0002241,2]
[312843487,1706340639417,-1651.55530446,0.0002241,2]
[312843488,1706340639426,-2744.96162196,0.00022415,2]
[312843489,1706340639484,-249.21791668,0.00022414,2]
[312843490,1706340639494,-24711.00956441,0.00022415,2]
[312843491,1706340639545,-1717.03269714,0.00022415,2]
[312843492,1706340639554,-238.14946148,0.00022418,2]
[312843493,1706340639564,-266.41237993,0.00022418,2]
[312843494,1706340639573,-386.6650989,0.00022418,2]
[312843495,1706340639582,-155.9650335,0.00022418,2]
[312843496,1706340639592,-282.75581456,0.00022418,2]
[312843497,1706340639601,-249.17726283,0.00022418,2]
[312843498,1706340639611,-156.11983464,0.00022421,2]
[312843499,1706340639622,-310.21948885,0.00022421,2]
[312843500,1706340639632,-275.19644263,0.00022421,2]
[312843501,1706340639642,-155.50287944,0.00022421,2]
[312843502,1706340639653,-260.14492985,0.00022421,2]
[312843503,1706340639664,-2381.51654915,0.00022421,2]
[312843504,1706340639673,-1148.7058745,0.00022421,2]
[312843505,1706340639685,-699.24103246,0.00022421,2]
[312843506,1706340639694,-690.75426141,0.00022427,2]
[312843507,1706340639703,-690.75426141,0.00022427,2]
[312843508,1706340639712,-189.81833798,0.00022467,2]
[312843509,1706340639722,-62.79815783,0.00022573,2]
[312843511,1706340639735,-259.83184217,0.00022573,2]
[312843513,1706340639744,-189.81833785,0.00023274,2]
[312843515,1706340639753,-479.01122374,0.000234,2]
[312843517,1706340639762,-312.83,0.0002357,2]
[312843518,1706340639773,-873.78424262,0.0002357,2]
[312843660,1706340641199,176.3,0.00016712,2]
[312843674,1706340641322,-327.8738,0.00022321,2]
[312843676,1706340641332,-96.39575738,0.0002357,2]
[312843678,1706340641341,-601.49,0.00023596,2]
[312843680,1706340641351,-103.36463713,0.00023615,2]
[312843718,1706340643103,-166.94536287,0.00023615,2]
[312843719,1706340643114,-355.8935037,0.00023623,2]
[312843720,1706340643162,-43.8664963,0.00023623,2]
[312843721,1706340643172,-2500.0,0.00023637,3]
[312843722,1706340643181,-4644.38944949,0.00023644,2]
[312843723,1706340643191,-499.99,0.00023649,2]
[312843724,1706340643200,-1087.53,0.00023668,2]
[312843725,1706340643210,-371.74910588,0.00023678,2]
[312843726,1706340643219,-600.0,0.00023679,2]
[312843727,1706340643229,-254.09824576,0.00023684,2]
[312843728,1706340643238,-200.0,0.00023709,2]
[312843729,1706340643247,-156.62,0.0002371,2]
[312843730,1706340643257,-115.90040264,0.00023887,2]
[312843748,1706340646134,-216.81,0.00023678,2]
[312843749,1706340646146,-134.09959736,0.00023887,2]
[312843750,1706340646155,-250.0,0.000239,2]
[312843751,1706340646165,-67.20131355,0.00023966,2]
[312843752,1706340646246,-953.86829346,0.00023966,2]
[312843753,1706340646255,-492.06098405,0.00023966,2]
[312843755,1706340646494,-3762.37620888,0.00023966,2]
[312843756,1706340646506,-23900.0,0.00023967,2]
[312843757,1706340646515,-400.0,0.0002397,2]
[312843758,1706340646525,-167.66,0.00023995,2]
[312843759,1706340646534,-2000.0,0.00024014,2]
[312843761,1706340646544,-667.87,0.00024038,2]
[312843763,1706340646554,-189.81833785,0.00024081,2]
[312843765,1706340646563,-153.16,0.00024182,2]
[312843767,1706340646572,-153.16,0.00024252,2]
[312843769,1706340646582,-153.16,0.00024322,2]
[312843771,1706340646591,-2546.59,0.00024384,2]
[312843773,1706340646601,-153.16,0.00024392,2]
[312843776,1706340646610,-153.16,0.00024462,2]
[312843779,1706340646619,-153.16,0.00024532,2]
[312843782,1706340646628,-153.16,0.00024602,2]
[312843785,1706340646638,-210.0,0.00024654,2]
[312843788,1706340646647,-155.54,0.00024658,2]
[312843791,1706340646656,-250.0,0.00024658,2]
[312843794,1706340646665,-153.16,0.00024672,2]
[312843796,1706340646674,-153.16,0.00024742,2]
[312843798,1706340646683,-153.16,0.00024812,2]
[312843800,1706340646691,-153.16,0.00024882,2]
[312843801,1706340646700,-189.81833785,0.00024888,2]
[312843802,1706340646709,-153.16,0.00024952,2]
[312843803,1706340646718,-3010.5035352,0.00025,2]
[312843804,1706340646726,-153.16,0.00025022,2]
[312843805,1706340646735,-153.16,0.00025092,2]
[312843806,1706340646744,-153.16,0.00025162,2]
[312843807,1706340646753,-153.16,0.00025232,2]
[312843808,1706340646762,-205.0,0.00025247,2]
[312843809,1706340646771,-153.16,0.00025302,2]
[312843811,1706340646781,-1087.53,0.00025312,2]
[312843813,1706340646790,-153.16,0.00025372,2]
[312843815,1706340646799,-153.16,0.00025442,2]
[312843817,1706340646808,-189.81833785,0.00025695,2]
[312843819,1706340646817,-987.38276699,0.00026223,5]
[312843821,1706340646827,-4634.84,0.00026224,2]
[312843823,1706340646836,-156.06,0.00026299,2]
[312843825,1706340646845,-667.87,0.00026302,2]
[312843827,1706340646855,-4457.63565314,0.00026322,2]
[312844096,1706340659741,4718.64665584,0.00023964,7]
[312844097,1706341410327,49957.05340874,5.1e-05,120]
[312844098,1706341566663,204.0,0.00021227,2]
[312844099,1706341628729,515.28146836,0.00024,7]
[312844106,1706341832234,-232.43131942,0.00022197,2]
[312844107,1706341832244,-350.9858696,0.00022564,2]
[312844108,1706341832340,-482.22900367,0.00022564,2]
[312844109,1706341832448,-879.05296663,0.00022564,2]
[312844110,1706341835736,729.74,0.00021911,2]
[312844129,1706341838773,-283.8321601,0.00022564,2]
[312844130,1706341838783,-5000.0,0.00023,2]
[312844131,1706341838793,-200.0,0.0002377,2]
[312844132,1706341838803,-600.0,0.00023773,2]
[312844133,1706341838812,-330.83,0.00023825,2]
[312844134,1706341838822,-856.49,0.00023825,2]
[312844135,1706341838831,-2500.0,0.00023828,3]
[312844136,1706341838841,-300.0,0.00023847,2]
[312844137,1706341838853,-420.37531115,0.00023848,2]
[312844138,1706341838943,-59.62468885,0.00023848,2]
[312844139,1706341838952,-691.05,0.00023848,2]
[312844140,1706341838961,-1887.2356685,0.00023857,2]
[312844333,1706341840974,-254.99296367,0.00023857,2]
[312844430,1706341844152,-232.70044936,0.00023856,2]
[312844431,1706341844161,-21757.77136783,0.00023857,2]
[312844432,1706341844170,-300.74,0.00023857,2]
[312844433,1706341844180,-158.18194835,0.00023864,2]
[312844434,1706341844194,-250.0,0.00023876,2]
[312844435,1706341844203,-1337.48,0.00023884,2]
[312844436,1706341844212,-2000.0,0.00023893,2]
[312844437,1706341844222,-250.0,0.00023909,2]
[312844438,1706341844231,-499.99,0.00023909,2]
[312844439,1706341844242,-3313.10843042,0.00023961,2]
[312844440,1706341844251,-9769.5,0.00023961,2]
[312844441,1706341844262,-155.27158622,0.00023961,2]
[312844442,1706341844271,-155.0,0.00023961,2]
[312844443,1706341844281,-936.15722828,0.00023962,4]
[312844444,1706341844292,-7669.77616698,0.00023964,2]
[312844445,1706341844302,-501.41289716,0.00023965,2]
[312844446,1706341844313,-845.56910406,0.00023965,2]
[312844447,1706341844322,-155.53197542,0.00023966,2]
[312844448,1706341844331,-312.21635244,0.00023966,2]
[312844449,1706341844342,-200.0,0.00024121,2]
[312844450,1706341844351,-729.74,0.00024175,2]
[312844451,1706341844360,-204.0,0.0002421,6]
[312844452,1706341844369,-175.05,0.00024214,2]
[312844453,1706341844378,-520.0,0.00024371,2]
[312844454,1706341844387,-175.05,0.00024529,2]
[312844455,1706341844396,-2122.15,0.00024561,2]
[312844456,1706341844406,-185.02,0.00024658,2]
[312844457,1706341844414,-167.99,0.00024658,2]
[312844458,1706341844424,-250.0,0.00024658,2]
[312844459,1706341844433,-158.1819482,0.00024685,2]
[312844460,1706341844442,-175.05,0.00024845,2]
[312844461,1706341844450,-1405.75351929,0.00025,4]
[312844462,1706341844460,-3010.5035352,0.00025,2]
[312844463,1706341844469,-173.6,0.00025011,2]
[312844464,1706341844478,-175.05,0.0002516,2]
[312844465,1706341844487,-175.05,0.00025476,2]
[312844466,1706341844496,-158.1819482,0.00025506,2]
[312844467,1706341844506,-167.85,0.00025506,2]
[312844468,1706341844515,-1337.48,0.00025528,2]
[312844469,1706341844524,-5655.2671,0.00025672,2]
[312844470,1706341844533,-8846.2584,0.00025672,2]
[312844471,1706341844542,-800.0,0.00025753,2]
[312844472,1706341844551,-410.497,0.00025772,2]
[312844473,1706341844560,-1361.0,0.00025772,2]
[312844474,1706341844569,-2428.0,0.00025772,2]
[312844475,1706341844578,-841.0,0.00025772,2]
[312844476,1706341844587,-3007.0,0.00025772,2]
[312844477,1706341844738,-451.0,0.00025772,2]
[312844478,1706341844749,-1858.0,0.00025772,2]
[312844479,1706341844759,-961.306,0.00025772,2]
[312844480,1706341844769,-1233.0,0.00025772,2]
[312844481,1706341844778,-704.0,0.00025772,2]
[312844482,1706341844787,-1256.375,0.00025772,2]
[312844483,1706341844797,-215.0,0.00025772,2]
[312844484,1706341844806,-1018.234,0.00025772,2]
[312844485,1706341844815,-623.205,0.00025772,2]
[312844486,1706341844824,-445.613,0.00025772,2]
[312844487,1706341844833,-236.0,0.00025772,2]
[312844488,1706341844842,-1966.613,0.00025772,2]